bitfinex-derivatives/quotes_SOLF0:USTF0_20250903
["timestamp","ask_amount","ask_price","bid_price","bid_amount"]
[1756882039594,5.35015334,209.08,209.03,8.91152161]
[1756882039793,6.96167495,209.09,209.03,1.61152161]
[1756882040090,6.51,209.08,209.01,8.91152161]
[1756882040585,6.51,209.08,209.03,1.61152161]
[1756882040792,6.51,209.08,209.04,7.3]
[1756882043492,5.35015334,209.09,209.06,7.3]
[1756882043691,11.86015334,209.1,209.06,7.3]
[1756882043893,6.51,209.09,209.06,7.3]
[1756882044193,6.51,209.09,209.05,1.61152161]
[1756882044194,6.51,209.09,209.05,7.3]
[1756882047496,6.51,209.09,209.03,8.91152161]
[1756882048791,6.51,209.09,208.99,7.3]
[1756882048997,6.51,209.09,209.02,8.91152161]
[1756882049192,8.12152161,209.09,209.02,8.91152161]
[1756882050195,8.12152161,209.09,208.92,4.01413438]
[1756882050389,52.42,209.16,208.87,369.88438931]
[1756882050390,1.61152161,209.05,208.99,1.61152161]
[1756882051699,6.51,209.06,208.99,1.61152161]
[1756882052398,6.51,209.06,209.0,7.3]
[1756882054301,11.86015334,209.06,209.0,7.3]
[1756882054500,6.51,209.06,209.0,7.3]
[1756882055201,11.86015334,209.06,209.0,7.3]
[1756882055802,6.51,209.06,209.0,7.3]
[1756882056697,5.35015334,209.07,209.04,7.3]
[1756882056902,6.51,209.08,209.04,7.3]
[1756882057803,11.86015334,209.07,209.01,1.61152161]
[1756882058598,5.35015334,209.06,209.01,1.61152161]
[1756882058803,6.51,209.05,209.01,8.91152161]
[1756882059004,6.51,209.05,209.01,1.61152161]
[1756882059204,6.51,209.05,209.02,7.3]
[1756882059499,6.51,209.05,209.01,1.61152161]
[1756882059702,5.35015334,209.07,209.01,1.61152161]
[1756882059897,5.35015334,209.07,209.02,7.3]
[1756882060103,5.35015334,209.07,209.01,1.61152161]
[1756882060298,5.35015334,209.07,209.04,7.3]
[1756882060900,6.51,209.05,209.01,1.61152161]
[1756882061105,5.35015334,209.06,209.01,1.61152161]
[1756882061707,6.51,209.05,209.01,1.61152161]
[1756882062113,6.51,209.05,209.01,9.35152161]
[1756882062305,6.51,209.05,209.02,7.74]
[1756882062506,5.35015334,209.06,209.02,7.74]
[1756882063307,5.35015334,209.07,209.01,9.35152161]
[1756882064518,5.35015334,209.06,209.01,1.61152161]
[1756882064811,6.51,209.05,209.02,7.74]
[1756882067118,6.51,209.05,209.01,1.61152161]
[1756882067312,6.51,209.05,208.99,1.61152161]
[1756882068018,6.51,209.05,209.01,1.61152161]
[1756882068216,6.51,209.05,209.01,9.35152161]
[1756882069315,6.51,209.05,209.01,1.61152161]
[1756882069316,5.35015334,209.05,209.01,1.61152161]
[1756882069509,6.51,209.04,209.01,9.35152161]
[1756882070217,5.35015334,209.05,208.94,55.4]
[1756882070518,6.51,209.04,209.0,1.61152161]
[1756882070719,6.51,209.04,209.0,9.35152161]
[1756882071113,6.51,209.03,208.96,7.74]
[1756882071311,11.86015334,209.03,208.96,9.35152161]
[1756882071514,5.35015334,209.02,208.96,9.35152161]
[1756882071810,11.86015334,209.03,208.96,9.35152161]
[1756882072217,5.35015334,209.02,208.96,9.35152161]
[1756882072817,6.51,209.01,208.96,9.35152161]
[1756882073014,6.51,209.01,208.87,298.85413438]
[1756882073015,11.86015334,209.01,208.93,1.61152161]
[1756882073314,6.51,208.99,208.93,1.61152161]
[1756882073515,11.86015334,208.99,208.92,1.61152161]
[1756882073715,5.35015334,208.99,208.91,9.35152161]
[1756882073923,6.51,208.97,208.89,1.61152161]
[1756882074219,6.51,208.97,208.9,7.74]
[1756882075023,6.51,208.97,208.91,1.61152161]
[1756882075621,6.51,208.97,208.9,7.74]
[1756882076620,6.51,208.97,208.91,1.61152161]
[1756882077917,1.61152161,208.96,208.89,1.61152161]
[1756882078116,6.51,208.95,208.89,1.61152161]
[1756882078621,6.51,208.95,208.89,9.35152161]
[1756882079424,6.51,208.95,208.89,7.74]
[1756882080826,6.51,208.98,208.89,7.74]
[1756882082026,6.51,208.98,208.91,7.74]
[1756882082924,6.51,208.98,208.87,294.84]
[1756882082925,6.51,208.98,208.87,305.10084037]
[1756882083228,6.51,208.97,208.87,305.10084037]
[1756882083425,6.51,208.98,208.87,7.74]
[1756882083726,0.03606344,208.95,208.9,0.0329095]
[1756882083929,6.51,208.94,208.9,0.0329095]
[1756882085226,0.03606344,208.95,208.9,0.0329095]
[1756882085631,6.51,208.94,208.9,0.0329095]
[1756882086029,0.03606344,208.95,208.9,0.0329095]
[1756882086435,6.51,208.94,208.9,0.0329095]
[1756882087129,0.03606344,208.95,208.9,0.0329095]
[1756882087625,6.51,208.94,208.9,0.0329095]
[1756882088030,0.03606344,208.95,208.9,0.0329095]
[1756882088232,6.51,208.94,208.9,0.0329095]
[1756882088427,0.03606344,208.95,208.9,0.0329095]
[1756882088729,6.51,208.94,208.9,0.0329095]
[1756882088929,0.03606344,208.95,208.9,0.0329095]
[1756882089136,6.51,208.94,208.9,0.0329095]
[1756882092731,0.03606344,208.95,208.9,0.0329095]
[1756882092936,6.52,208.94,208.9,0.0329095]
[1756882093137,0.03606344,208.95,208.9,0.0329095]
[1756882093631,6.52,208.94,208.9,0.0329095]
[1756882093832,2.52084037,208.93,208.9,0.0329095]
[1756882094137,6.52,208.92,208.9,0.0329095]
[1756882094635,2.52084037,208.93,208.9,0.0329095]
[1756882094837,6.52,208.92,208.9,0.0329095]
[1756882095035,2.52084037,208.93,208.9,0.0329095]
[1756882095239,6.52,208.92,208.9,0.0329095]
[1756882095439,2.52084037,208.93,208.9,0.0329095]
[1756882095837,6.5,208.92,208.9,0.0329095]
[1756882096535,2.52084037,208.93,208.9,0.0329095]
[1756882096736,6.5,208.93,208.9,0.0329095]
[1756882097135,0.03606344,208.95,208.9,0.0329095]
[1756882097841,6.5,208.94,208.9,0.0329095]
[1756882098043,0.03606344,208.95,208.9,0.0329095]
[1756882098239,6.5,208.94,208.9,0.0329095]
[1756882098633,0.03606344,208.95,208.9,0.0329095]
[1756882098838,6.5,208.94,208.9,0.0329095]
[1756882099046,2.52084037,208.93,208.9,0.0329095]
[1756882099540,6.5,208.92,208.9,0.0329095]
[1756882099744,2.52084037,208.93,208.9,0.0329095]
[1756882100144,6.5,208.92,208.9,0.0329095]
[1756882100342,2.52084037,208.93,208.9,0.0329095]
[1756882100748,6.5,208.92,208.9,0.0329095]
[1756882101340,2.52084037,208.93,208.9,0.0329095]
[1756882101542,6.5,208.92,208.9,0.0329095]
[1756882101940,2.52084037,208.93,208.9,0.0329095]
[1756882102746,6.5,208.92,208.9,0.0329095]
[1756882103247,2.52084037,208.93,208.9,0.0329095]
[1756882103948,6.5,208.92,208.9,0.0329095]
[1756882104148,2.52084037,208.93,208.9,0.0329095]
[1756882104540,6.5,208.92,208.9,0.0329095]
[1756882105344,2.52084037,208.93,208.9,0.0329095]
[1756882105544,6.5,208.92,208.9,0.0329095]
[1756882105846,2.52084037,208.93,208.9,0.0329095]
[1756882106243,6.5,208.94,208.9,0.0329095]
[1756882106448,2.52084037,208.93,208.9,0.0329095]
[1756882106748,6.5,208.92,208.9,0.0329095]
[1756882106944,2.52084037,208.93,208.9,0.0329095]
[1756882107149,6.5,208.92,208.9,0.0329095]
[1756882107348,2.52084037,208.93,208.9,0.0329095]
[1756882107745,6.5,208.92,208.9,0.0329095]
[1756882108249,2.52084037,208.93,208.9,0.0329095]
[1756882108648,6.5,208.92,208.9,0.0329095]
[1756882108848,2.52084037,208.93,208.9,0.0329095]
[1756882109045,6.5,208.92,208.9,0.0329095]
[1756882109244,2.52084037,208.93,208.9,0.0329095]
[1756882109548,6.5,208.92,208.9,0.0329095]
[1756882109950,2.52084037,208.93,208.9,0.0329095]
[1756882110147,6.5,208.92,208.9,0.0329095]
[1756882110748,2.52084037,208.93,208.9,0.0329095]
[1756882110948,6.5,208.92,208.9,0.0329095]
[1756882111349,7.87099371,208.93,208.9,0.0329095]
[1756882111549,6.5,208.92,208.9,0.0329095]
[1756882111751,7.87099371,208.93,208.9,0.0329095]
[1756882112852,6.5,208.92,208.9,0.0329095]
[1756882113356,6.5,208.92,208.83,7.93]
[1756882113357,12.33015334,208.92,208.83,7.93]
[1756882113557,2.52084037,208.89,208.83,7.93]
[1756882113857,6.5,208.88,208.83,7.93]
[1756882114156,2.52084037,208.89,208.83,7.93]
[1756882114353,6.5,208.88,208.83,7.93]
[1756882114755,0.0349673,208.88,208.76,7.93]
[1756882115063,9.02084037,208.89,208.76,7.93]
[1756882115259,14.37099371,208.89,208.76,7.93]
[1756882115556,0.03591288,208.84,208.76,7.93]
[1756882119551,9.02084037,208.83,208.76,7.93]
[1756882119755,2.52084037,208.82,208.76,7.93]
[1756882120558,6.5,208.81,208.76,7.93]
[1756882121162,2.52084037,208.82,208.76,7.93]
[1756882121358,6.53,208.81,208.76,7.93]
[1756882121858,2.52084037,208.82,208.76,7.93]
[1756882122362,6.53,208.81,208.68,7.37]
[1756882123062,0.03066044,208.77,208.68,7.37]
[1756882127171,6.56066044,208.77,208.68,7.37]
[1756882131672,6.53,208.75,208.68,7.37]
[1756882134771,2.52084037,208.76,208.68,7.37]
[1756882136177,9.05084037,208.76,208.68,7.37]
[1756882139478,1.61775546,208.69,208.62,7.37]
[1756882140080,0.0356947,208.68,208.62,7.37]
[1756882140379,1.61775546,208.67,208.57,7.37]
[1756882140580,1.61775546,208.67,208.6,7.37]
[1756882141179,0.03513668,208.66,208.6,7.37]
[1756882143287,1.61775546,208.65,208.58,7.37]
[1756882143888,0.03375435,208.64,208.58,7.37]
[1756882144086,0.03375435,208.64,208.59,1.61775546]
[1756882144281,0.03375435,208.64,208.6,7.37]
[1756882144476,0.03375435,208.64,208.59,1.61775546]
[1756882144677,0.03375435,208.64,208.6,7.37]
[1756882144876,0.03375435,208.64,208.54,59.38]
[1756882145076,0.03375435,208.64,208.59,1.61775546]
[1756882145282,0.03375435,208.64,208.58,7.37]
[1756882146891,1.61775546,208.63,208.58,7.37]
[1756882147083,1.61775546,208.63,208.57,7.37]
[1756882148386,1.65150981,208.64,208.57,7.37]
[1756882153888,0.03375435,208.64,208.57,8.98775546]
[1756882155889,0.03375435,208.64,208.6,7.69]
[1756882157591,0.03375435,208.64,208.59,1.61775546]
[1756882157791,0.03375435,208.64,208.6,7.69]
[1756882157992,0.03375435,208.64,208.59,1.61775546]
[1756882158296,0.03375435,208.64,208.6,7.69]
[1756882158691,0.03375435,208.64,208.59,1.61775546]
[1756882158991,0.03375435,208.64,208.6,7.69]
[1756882159297,0.03375435,208.64,208.59,1.61775546]
[1756882159795,0.03375435,208.64,208.6,7.69]
[1756882159999,0.03375435,208.64,208.59,1.61775546]
[1756882160795,0.03375435,208.64,208.6,7.69]
[1756882161593,0.03375435,208.64,208.59,1.61775546]
[1756882161787,0.03375435,208.64,208.6,7.69]
[1756882162193,0.03375435,208.64,208.59,1.61775546]
[1756882162589,0.03375435,208.64,208.6,7.69]
[1756882165903,0.03375435,208.64,208.61,1.61775546]
[1756882166202,0.03375435,208.64,208.62,7.69]
[1756882169104,0.03375435,208.64,208.63,9.30775546]
[1756882174412,0.03375435,208.64,208.63,7.69]
[1756882178009,6.56375435,208.64,208.61,7.72164473]
[1756882180508,6.53,208.62,208.61,0.03164473]
[1756882197626,8.14775546,208.62,208.61,0.03164473]
[1756882199526,6.56375435,208.64,208.61,0.03164473]
[1756882199732,6.56375435,208.64,208.62,7.33]
[1756882200530,6.56375435,208.64,208.61,0.03164473]
[1756882200531,6.53,208.63,208.61,0.03164473]
[1756882201529,0.03375435,208.64,208.61,7.36164473]
[1756882201735,0.03375435,208.64,208.61,0.03164473]
[1756882202136,0.03375435,208.64,208.62,7.33]
[1756882203130,0.03375435,208.64,208.61,0.03164473]
[1756882203830,0.03375435,208.64,208.62,7.33]
[1756882204830,0.03375435,208.64,208.61,2.55991881]
[1756882205832,0.03375435,208.64,208.61,0.03164473]
[1756882207438,0.03375435,208.64,208.62,9.85827408]
[1756882207639,0.03375435,208.64,208.63,7.33]
[1756882208041,0.03375435,208.64,208.61,7.36164473]
[1756882208340,0.03375435,208.64,208.61,0.03164473]
[1756882208642,6.53,208.63,208.61,0.03164473]
[1756882209133,0.03375435,208.64,208.61,0.03164473]
[1756882209335,6.53,208.63,208.61,0.03164473]
[1756882209535,9.05827408,208.62,208.61,0.03164473]
[1756882209736,18.13942958,208.62,208.61,0.03164473]
[1756882210730,14.40842742,208.62,208.61,0.03164473]
[1756882211744,18.13812794,208.62,208.61,0.03164473]
[1756882212542,18.61812794,208.62,208.5,7.47]
[1756882212737,2.52827408,208.56,208.44,7.47]
[1756882212944,6.5,208.55,208.44,7.47]
[1756882213739,14.37842742,208.59,208.46,7.47]
[1756882213940,0.03349582,208.52,208.49,7.47]
[1756882214338,0.03349582,208.52,208.48,7.47]
[1756882214543,0.03349582,208.52,208.47,7.47]
[1756882215945,0.03349582,208.52,208.49,7.47]
[1756882221753,6.5,208.6,208.52,7.47]
[1756882222755,0.03676026,208.58,208.52,7.47]
[1756882223452,0.03676026,208.58,208.45,4.317]
[1756882223453,6.54,208.57,208.47,7.47]
[1756882224060,0.03038103,208.54,208.47,7.47]
[1756882224355,6.54,208.52,208.45,117.12]
[1756882226759,0.03038103,208.54,208.39,74.51584089]
[1756882226760,6.54,208.48,208.39,7.47]
[1756882227360,0.03626878,208.46,208.39,7.47]
[1756882229153,6.54,208.45,208.39,7.47]
[1756882233168,6.54,208.45,208.35,19.88]
[1756882233365,6.54,208.45,208.36,7.47]
[1756882237967,2.56454286,208.46,208.36,7.47]
[1756882238173,0.03626878,208.46,208.36,7.47]
[1756882238964,6.54,208.45,208.36,7.47]
[1756882239168,0.03626878,208.46,208.36,7.47]
[1756882240062,0.03626878,208.46,208.39,7.47]
[1756882242071,0.03626878,208.46,208.41,7.3]
[1756882242671,0.03626878,208.46,208.4,2.52827408]
[1756882242975,0.03626878,208.46,208.34,113.69937408]
[1756882242976,0.03626878,208.46,208.41,7.3]
[1756882243178,0.03626878,208.46,208.36,7.3]
[1756882243478,6.55,208.48,208.37,7.3]
[1756882243870,0.03299296,208.43,208.37,7.3]
[1756882249576,0.03299296,208.43,208.37,9.82827408]
[1756882249780,0.03299296,208.43,208.38,7.3]
[1756882250783,0.03299296,208.43,208.38,11.6185]
[1756882250978,0.03299296,208.43,208.41,7.3]
[1756882251179,6.55,208.53,208.41,7.3]
[1756882251376,6.55,208.53,208.42,7.3]
[1756882252275,6.58,208.51,208.42,7.3]
[1756882255584,9.10827408,208.51,208.42,7.3]
[1756882257177,6.58,208.5,208.37,7.3]
[1756882257385,6.58,208.47,208.37,7.3]
[1756882259185,2.52827408,208.45,208.37,7.3]
[1756882259376,6.58,208.44,208.37,7.3]
[1756882262386,9.10827408,208.48,208.37,7.3]
[1756882263589,1.62137452,208.45,208.38,1.62137452]
[1756882263792,8.20137452,208.45,208.38,1.62137452]
[1756882264492,1.62137452,208.46,208.39,7.3]
[1756882265086,6.58,208.49,208.42,1.62137452]
[1756882265487,1.62137452,208.48,208.42,1.62137452]
[1756882266492,1.62137452,208.48,208.41,7.3]
[1756882267894,6.58,208.49,208.41,7.3]
[1756882268190,1.62137452,208.48,208.41,7.3]
[1756882269094,1.62137452,208.48,208.42,1.62137452]
[1756882269294,6.58,208.49,208.43,7.3]
[1756882269494,6.58,208.49,208.44,1.62137452]
[1756882269697,1.62137452,208.5,208.44,1.62137452]
[1756882269894,1.62137452,208.5,208.44,7.3]
[1756882272301,8.20137452,208.5,208.44,7.3]
[1756882272496,6.58,208.47,208.41,1.62137452]
[1756882275504,5.35015334,208.49,208.43,1.62137452]
[1756882275802,11.93015334,208.5,208.45,1.62137452]
[1756882276001,6.58,208.5,208.46,7.18]
[1756882276297,5.35015334,208.52,208.47,1.62137452]
[1756882276499,11.93015334,208.54,208.48,7.18]
[1756882276695,6.58,208.54,208.5,7.18]
[1756882278994,6.97152786,208.56,208.49,1.62137452]
[1756882279199,1.62137452,208.56,208.5,7.18]
[1756882279401,13.55152786,208.57,208.5,7.18]
[1756882279600,8.20137452,208.57,208.5,7.18]
[1756882280898,5.35015334,208.59,208.54,7.18]
[1756882281094,11.93015334,208.61,208.56,7.18]
[1756882281294,11.93015334,208.61,208.55,1.62137452]
[1756882281295,6.58,208.61,208.55,8.80137452]
[1756882283606,1.62137452,208.63,208.55,8.80137452]
[1756882284206,1.62137452,208.63,208.57,1.62137452]
[1756882284802,300.77015334,208.64,208.57,1.62137452]
[1756882285108,6.58,208.66,208.62,7.18]
[1756882285500,11.93015334,208.67,208.61,1.62137452]
[1756882285803,6.58,208.67,208.61,1.62137452]
[1756882286303,1.62137452,208.66,208.59,7.18]
[1756882286504,6.58,208.67,208.48,4.3165]
[1756882286505,1.62137452,208.64,208.57,1.62137452]
[1756882287405,6.59,208.63,208.56,8.80137452]
[1756882287611,6.59,208.62,208.54,1.62137452]
[1756882287812,1.62137452,208.61,208.54,1.62137452]
[1756882288708,6.59,208.6,208.54,1.62137452]
[1756882289010,6.59,208.6,208.56,8.80137452]
[1756882291513,1.62137452,208.61,208.54,1.62137452]
[1756882291713,1.62137452,208.59,208.52,7.18]
[1756882292414,6.59,208.6,208.53,1.62137452]
[1756882293614,6.59,208.64,208.57,1.62137452]
[1756882293908,6.59,208.64,208.59,1.62137452]
[1756882294112,6.59,208.64,208.6,7.18]
[1756882294310,1.62137452,208.64,208.57,1.62137452]
[1756882294505,6.59,208.61,208.54,1.62137452]
[1756882295411,6.59,208.61,208.53,7.18]
[1756882295412,1.62137452,208.6,208.53,7.18]
[1756882295916,1.62137452,208.58,208.5,1.62137452]
[1756882300016,6.59,208.59,208.54,1.62137452]
[1756882300216,1.62137452,208.62,208.55,1.62137452]
[1756882300511,1.62137452,208.62,208.54,7.18]
[1756882300708,1.62137452,208.62,208.55,1.62137452]
[1756882301109,6.59,208.63,208.57,1.62137452]
[1756882302216,6.97152786,208.66,208.57,9.40137452]
[1756882302518,1.62137452,208.66,208.59,1.62137452]
[1756882302716,1.62137452,208.64,208.57,9.40137452]
[1756882304017,6.55,208.65,208.59,1.62137452]
[1756882312622,6.55,208.65,208.61,1.62137452]
[1756882312827,6.55,208.65,208.61,9.40137452]
[1756882313023,5.35015334,208.67,208.61,1.62137452]
[1756882313330,8.17137452,208.66,208.59,1.62137452]
[1756882314430,6.55,208.66,208.59,1.62137452]
[1756882315830,5.35015334,208.67,208.61,1.62137452]
[1756882316131,11.90015334,208.67,208.61,1.62137452]
[1756882318230,5.35015334,208.66,208.61,1.62137452]
[1756882318530,6.55,208.65,208.61,9.40137452]
[1756882318921,5.35015334,208.66,208.61,9.40137452]
[1756882319125,6.55,208.65,208.61,9.40137452]
[1756882319325,5.35015334,208.66,208.61,9.40137452]
[1756882319530,6.55,208.65,208.61,9.40137452]
[1756882319933,5.35015334,208.66,208.61,9.40137452]
[1756882320131,6.55,208.65,208.61,9.40137452]
[1756882320430,6.55,208.64,208.61,7.78]
[1756882321428,5.35015334,208.65,208.59,1.62137452]
[1756882321731,5.35015334,208.64,208.59,1.62137452]
[1756882321927,6.55,208.63,208.59,1.62137452]
[1756882322134,5.35015334,208.64,208.59,1.62137452]
[1756882322534,6.55,208.63,208.59,9.40137452]
[1756882322829,6.55,208.63,208.59,1.62137452]
[1756882323132,6.55,208.63,208.6,7.78]
[1756882327528,5.35015334,208.65,208.57,7.78]
[1756882328030,5.35015334,208.64,208.57,7.78]
[1756882329539,5.35015334,208.65,208.57,7.78]
[1756882329941,5.35015334,208.65,208.54,4.3151]
[1756882329942,5.35015334,208.65,208.59,2.52843629]
[1756882331738,5.35015334,208.65,208.6,7.39]
[1756882332032,5.35015334,208.65,208.59,7.39]
[1756882332238,5.35015334,208.64,208.59,7.39]
[1756882332438,6.57,208.63,208.56,7.39]
[1756882333542,5.35015334,208.65,208.56,7.39]
[1756882336145,5.35015334,208.65,208.59,7.39]
[1756882336445,11.92015334,208.66,208.59,7.39]
[1756882339345,5.35015334,208.66,208.59,7.39]
[1756882339546,5.35015334,208.69,208.64,2.52843629]
[1756882339841,6.57,208.69,208.64,2.52843629]
[1756882340043,6.57,208.69,208.65,7.39]
[1756882340245,6.57,208.69,208.64,2.52843629]
[1756882340446,6.57,208.69,208.65,7.39]
[1756882340946,6.57,208.69,208.64,2.52843629]
[1756882341538,5.35015334,208.7,208.65,7.39]
[1756882341739,5.35015334,208.71,208.65,9.91843629]
[1756882342248,11.92015334,208.71,208.65,9.91843629]
[1756882345651,5.35015334,208.72,208.65,2.52843629]
[1756882345851,5.35015334,208.72,208.66,7.39]
[1756882346146,14.59523001,208.75,208.68,2.52843629]
[1756882346147,5.35015334,208.73,208.68,2.52843629]
[1756882346444,11.92015334,208.74,208.67,2.52843629]
[1756882346649,5.35015334,208.73,208.65,7.39]
[1756882346946,11.92015334,208.72,208.66,4.43461738]
[1756882347250,5.35015334,208.73,208.67,6.96305367]
[1756882347450,11.92015334,208.73,208.67,9.91843629]
[1756882347843,11.92015334,208.73,208.65,2.52843629]
[1756882348045,11.92015334,208.73,208.66,4.43396172]
[1756882348252,11.92015334,208.73,208.67,4.43396172]
[1756882348453,11.92015334,208.73,208.65,9.91843629]
[1756882348654,11.92015334,208.73,208.66,4.43308153]
[1756882348953,11.92015334,208.73,208.67,4.43308153]
[1756882349254,5.35015334,208.74,208.66,7.39]
[1756882349452,5.35015334,208.74,208.71,2.52843629]
[1756882349661,5.35015334,208.75,208.72,7.39]
[1756882350254,5.35015334,208.75,208.71,2.52843629]
[1756882350255,6.57,208.75,208.71,2.52843629]
[1756882351359,6.57,208.75,208.71,9.91843629]
[1756882351556,5.35015334,208.76,208.71,2.52843629]
[1756882351755,6.57,208.75,208.67,7.39]
[1756882351952,6.57,208.73,208.64,2.52843629]
[1756882352161,6.57,208.73,208.65,4.32077524]
[1756882352454,6.57,208.73,208.64,2.52843629]
[1756882352660,6.57,208.73,208.65,4.32051233]
[1756882352859,6.57,208.73,208.64,2.52843629]
[1756882353062,6.57,208.73,208.65,4.32032123]
[1756882353258,6.57,208.73,208.64,2.52843629]
[1756882353465,6.57,208.73,208.67,2.52843629]
[1756882353757,6.57,208.73,208.69,7.39]
[1756882354969,5.35015334,208.76,208.68,7.39]
[1756882355264,11.92015334,208.77,208.7,2.52843629]
[1756882355763,11.92015334,208.77,208.7,7.39]
[1756882355967,6.57,208.74,208.62,10.16]
[1756882356165,6.57,208.74,208.65,9.91843629]
[1756882358166,11.92015334,208.74,208.65,9.91843629]
[1756882360565,11.92015334,208.74,208.66,7.39]
[1756882361970,5.35015334,208.74,208.62,12.68843629]
[1756882362175,11.90015334,208.73,208.63,4.32112808]
[1756882362373,6.55,208.72,208.62,12.68843629]
[1756882362673,6.55,208.72,208.63,4.32199626]
[1756882362973,6.55,208.72,208.62,12.68843629]
[1756882363274,11.90015334,208.72,208.63,4.3221889]
[1756882363473,11.90015334,208.72,208.62,12.68843629]
[1756882363674,11.90015334,208.72,208.63,4.32390723]
[1756882363873,11.90015334,208.72,208.62,12.68843629]
[1756882364073,11.90015334,208.72,208.63,4.32397748]
[1756882364375,11.90015334,208.72,208.62,12.68843629]
[1756882364579,11.90015334,208.72,208.63,4.32450271]
[1756882364775,11.90015334,208.72,208.62,12.68843629]
[1756882365078,11.90015334,208.72,208.63,4.32464985]
[1756882365377,11.90015334,208.72,208.63,7.68]
[1756882365974,5.35015334,208.72,208.65,2.52843629]
[1756882366174,5.35015334,208.74,208.66,7.68]
[1756882372085,11.90015334,208.73,208.66,7.68]
[1756882372285,6.55,208.73,208.66,7.68]
[1756882373285,5.35015334,208.74,208.68,7.68]
[1756882374084,11.90015334,208.74,208.68,7.68]
[1756882374886,11.90015334,208.74,208.65,10.20843629]
[1756882375085,6.55,208.73,208.66,4.33959718]
[1756882375286,6.55,208.73,208.67,4.34051232]
[1756882375481,6.55,208.73,208.65,10.20843629]
[1756882375785,6.55,208.73,208.66,4.3403184]
[1756882375978,6.55,208.73,208.67,4.3403184]
[1756882376182,11.90015334,208.73,208.65,10.20843629]
[1756882376486,11.90015334,208.73,208.66,4.34094216]
[1756882376686,11.90015334,208.73,208.67,4.34094216]
[1756882376891,11.90015334,208.73,208.65,10.20843629]
[1756882377187,6.55,208.73,208.67,7.68]
[1756882378288,11.90015334,208.73,208.69,7.68]
[1756882378488,11.90015334,208.73,208.65,2.52843629]
[1756882378683,5.35015334,208.73,208.68,2.52843629]
[1756882378885,5.35015334,208.75,208.69,12.02295674]
[1756882379085,5.35015334,208.75,208.69,7.68]
[1756882379280,6.55,208.73,208.69,7.68]
[1756882379485,11.90015334,208.73,208.65,10.20843629]
[1756882379683,11.90015334,208.73,208.66,4.34401996]
[1756882379885,11.90015334,208.73,208.67,12.02401996]
[1756882380183,11.90015334,208.73,208.69,7.68]
[1756882380785,5.35015334,208.73,208.69,7.68]
[1756882381088,11.90015334,208.73,208.69,7.68]
[1756882382281,11.90015334,208.73,208.68,2.52843629]
[1756882382487,6.55,208.72,208.64,10.20843629]
[1756882382687,6.55,208.69,208.65,4.34986042]
[1756882382991,11.90015334,208.69,208.62,7.68]
[1756882384889,6.55,208.69,208.62,7.68]
[1756882385094,5.35015334,208.7,208.64,2.52843629]
[1756882385494,5.35015334,208.7,208.65,7.68]
[1756882385694,5.35015334,208.7,208.6,7.68]
[1756882385895,5.35015334,208.7,208.64,2.52843629]
[1756882386598,5.35015334,208.72,208.68,7.68]
[1756882386797,6.55,208.77,208.67,2.52843629]
[1756882386798,5.35015334,208.73,208.67,2.52843629]
[1756882386994,5.35015334,208.74,208.68,7.68]
[1756882387389,11.90015334,208.74,208.7,7.68]
[1756882387595,11.90015334,208.74,208.71,1.61636279]
[1756882390294,5.35015334,208.74,208.71,1.61636279]
[1756882390498,11.92015334,208.74,208.71,1.61636279]
[1756882390792,5.35015334,208.72,208.67,1.61636279]
[1756882390995,5.35015334,208.72,208.68,4.3889653]
[1756882391196,6.57,208.71,208.67,1.61636279]
[1756882391394,6.56,208.71,208.68,4.38915445]
[1756882391596,6.56,208.71,208.67,1.61636279]
[1756882391795,6.56,208.71,208.68,4.39005307]
[1756882391996,6.56,208.71,208.67,1.61636279]
[1756882392192,6.56,208.71,208.69,1.61636279]
[1756882392396,6.56,208.73,208.7,4.38863952]
[1756882392601,6.56,208.73,208.71,1.61636279]
[1756882393100,5.35015334,208.75,208.71,9.24636279]